Cogmind - Beta 13 @@@ ROGUE MODE // 2024.04.20 @ 20:17:19 Player: TheedMan Result: Destroyed by G-47 Trooper with Particle Gun Performance ------------- Evolutions (2) 1000 Regions Visited (4) 800 Robots Destroyed (24) 120 Value Destroyed (695) 695 Prototype IDs (4) 80 Alien Tech Used (0) 0 Bonus (0) 0 TOTAL SCORE: 2695 Bonus ------- None Cogmind --------- Core Integrity 0/550 Matter 253/300 Energy 47/100 System Corruption 7% Temperature Warm (110) Movement Core (150) Ox2 Location -8/Materials Parts ------- > --- POWER (2) -------- (None) > --- PROPULSION (3) --- (None) > --- UTILITY (4) ------ Small Storage Unit > --- WEAPON (2) ------- Heavy Assault Rifle > --- INVENTORY (8) ---- Light Ion Engine Light Treads Peak State ------------ > --- POWER ------------ Light Deuterium Engine Light Nuclear Core > --- PROPULSION ------- Light Treads Light Treads Light Treads > --- UTILITY ---------- Small Storage Unit Trap Scanner Targeting Computer Tractor Beam > --- WEAPON ----------- Small Laser Shotgun > --- INVENTORY -------- Light Ion Engine Light Treads Small Storage Unit Particle Gun Heavy Assault Rifle Autogun Shotgun Rocket Launcher [Rating: 19] Favorites ----------- Power Ion Engine Engine Ion Engine Power Core Light Nuclear Core Propulsion Aluminum Leg Treads Light Treads Leg Aluminum Leg Utility Small Storage Unit Device Tractor Beam Storage Small Storage Unit Processor Targeting Computer Hackware System Shield Weapon Small Laser Energy Gun Small Laser Ballistic Gun Shotgun Launcher Rocket Launcher Build | -11 -10 -9 -9 -8 ------- Run | Yrd Mat Mat Min Mat Slots Evolved 4 | . . 2 . 2 Power 1 | . . . . 1 Propulsion 1 | . . 1 . . Utility 2 | . . 1 . 1 Weapon . | . . . . . Parts Attached 41 | 6 6 8 2 19 Power 7 | 1 1 1 . 4 Engine 6 | 1 1 1 . 3 Core 1 | . . . . 1 Reactor . | . . . . . Propulsion 13 | 2 4 2 1 4 Treads 4 | . . . . 4 Leg 9 | 2 4 2 1 . Wheel . | . . . . . Hover . | . . . . . Flight . | . . . . . Utility 9 | 1 1 2 . 5 Device 4 | . 1 1 . 2 Storage 3 | 1 . . . 2 Processor 1 | . . 1 . . Hackware 1 | . . . . 1 Protection . | . . . . . Artifact . | . . . . . Weapon 12 | 2 . 3 1 6 Energy Gun 6 | 2 . 2 1 1 Energy Cannon . | . . . . . Ballistic Gun 5 | . . 1 . 4 Ballistic Cannon . | . . . . . Launcher 1 | . . . . 1 Special Weapon . | . . . . . Impact Weapon . | . . . . . Slashing Weapon . | . . . . . Piercing Weapon . | . . . . . Special Melee Weapon . | . . . . . Unidentified Prototypes . | . . . . . Parts Lost 25 | . 1 4 . 20 Power 5 | . 1 . . 4 Propulsion 7 | . . 1 . 6 Utility 5 | . . 1 . 4 Weapon 8 | . . 2 . 6 Highest Loss Streak 14 | . 1 2 . 14 To Critical Strikes . | . . . . . Average Slot Usage (%) 84 | . 91 85 88 74 Engine 9 | . 9 11 11 6 Core 1 | . . . . 5 Treads 2 | . . . . 9 Leg 24 | . 28 32 33 9 Device 6 | . 10 4 . 5 Storage 11 | . 14 11 11 9 Processor 4 | . . 4 11 8 Energy Gun 20 | . 28 20 22 10 Ballistic Gun 1 | . . . . 6 Naked Turns . | . . . . . Heaviest Build 24 | 13 14 16 14 24 Greatest Support 60 | 20 26 45 36 60 Greatest Overweight (x) 3 | 1 . . . 3 Average Overweight (x) . | . . . . . Largest Inventory Capacity 8 | 8 8 8 8 8 Average Capacity 7 | 7 8 8 8 7 Most Carried 8 | 4 8 8 8 8 Average Carried 5 | 2 4 6 7 7 Final Capacity 8 | 8 8 8 8 8 Final Carried 8 | 4 5 8 8 2 Class Distribution -------------------- 73% | Mutant 26% | Scavenger-Mutant Dominant Class ---------------- Mutant | -10/Materials Mutant | -9/Materials Scavenger-Mutant | -9/Mines Scavenger-Mutant | -8/Materials Resources | -11 -10 -9 -9 -8 ----------- Run | Yrd Mat Mat Min Mat Matter Collected 656 | 226 106 112 10 202 Remotely 145 | . 53 . . 92 Salvage Created 839 | . 172 324 . 343 Parts 49 | . 5 25 . 19 Haulers Intercepted . | . . . . . Recyclers Shooed 1 | . . . . 1 Parts Field Recycled . | . . . . . Retrieved Matter . | . . . . . Parts Self-Destructed . | . . . . . Prevented . | . . . . . Kills | -11 -10 -9 -9 -8 ------- Run | Yrd Mat Mat Min Mat Combat Hostiles Destroyed 20 | . 4 6 . 10 Guns 19 | . 3 6 . 10 Classes Destroyed 6 | . 1 3 . 2 Builder 2 | . . 1 . 1 Watcher 2 | . . 1 . 1 Swarmer 6 | . . . . 6 Grunt 9 | . 4 3 . 2 Brawler 1 | . . . . 1 Sentry 4 | . . 3 . 1 Best Kill Streak 6 | . 3 4 . 6 Combat Bots Only 6 | . 3 3 . 6 Max Kills in Single Turn 1 | . 1 1 . 1 Gunslinging . | . . . . . Exploded . | . . . . . Melee . | . . . . . Uniques/NPCs Destroyed . | . . . . . Combat | -11 -10 -9 -9 -8 -------- Run | Yrd Mat Mat Min Mat Hostile Shots Fired 249 | . 41 61 . 147 Missed 62 | . 15 12 . 35 Damage Taken 3091 | . 319 679 . 2093 Core 747 | . 42 148 . 557 Absorbed by Shields . | . . . . . Core Remaining (%) 82 | 100 83 . 63 . Volleys Fired 118 | . 30 34 . 54 Largest 2 | . 2 2 . 2 Hottest 90 | . 90 90 . 88 Shots Fired 202 | . 60 58 . 84 Gun 200 | . 60 58 . 82 Cannon . | . . . . . Launcher 2 | . . . . 2 Special . | . . . . . Kinetic 24 | . . 3 . 21 Thermal 176 | . 60 55 . 61 Explosive 2 | . . . . 2 Electromagnetic . | . . . . . Robot Hit Streak 16 | . 13 7 . 16 Robot Miss Streak 8 | . 8 8 . 5 Penetration Max . | . . . . . Secondary Targets 3 | . 1 . . 2 Max Gunslinging Chain 1 | . 1 . . 1 Shots Hit Robots 122 | . 30 33 . 59 Core Hits 49 | . 9 15 2 23 Critical Kills 1 | . . . . 1 Critical Parts Destroyed . | . . . . . Critical Strikes 5 | . 2 2 . 1 Burn 4 | . 2 2 . . Destroy 1 | . . . . 1 Melee Attacks . | . . . . . Impact . | . . . . . Slashing . | . . . . . Piercing . | . . . . . Sneak Attacks . | . . . . . Combat Hostiles . | . . . . . Follow-up Attacks . | . . . . . Damage Inflicted 1590 | . 370 429 6 785 Guns 1536 | . 367 429 . 740 Cannons . | . . . . . Explosions 43 | . . . . 43 Melee . | . . . . . Ramming 11 | . 3 . 6 2 Kinetic 272 | . . 55 . 217 Thermal 1264 | . 367 374 . 523 Explosive 43 | . . . . 43 Electromagnetic . | . . . . . Impact . | . . . . . Slashing . | . . . . . Piercing . | . . . . . Highest Corruption 7 | . . . . 7 Average Corruption 3 | . . . . 3 Corruption Purged . | . . . . . Corruption Blocked . | . . . . . Effects 1 | . . . . 1 Matter Fused 1 | . . . . 1 Overload Shots . | . . . . . Overflow Damage . | . . . . . Projectiles . | . . . . . Explosions . | . . . . . Melee . | . . . . . Knockbacks . | . . . . . Impact . | . . . . . Kinetic . | . . . . . Secondary . | . . . . . Self-Inflicted Damage . | . . . . . Shots . | . . . . . Rammed 1 | . . . . 1 Targets Rammed 4 | . 1 . 2 1 Kicked 3 | . 1 . 2 . Crushed . | . . . . . Highest Temperature 422 | . 422 159 . 263 Average Temperature 98 | . 150 57 . 78 Received Heat Transfer 1203 | . 201 282 . 720 Effects 6 | . 6 . . . Interference 3 | . 3 . . . Matter Decay 1 | . 1 . . . Short Circuit 1 | . 1 . . . Damage (minor) 1 | . 1 . . . Siege Activations . | . . . . . Robots Corrupted . | . . . . . Combat Hostiles . | . . . . . Parts Fried . | . . . . . Impact Corruptions . | . . . . . Robots Melted 1 | . 1 . . . Combat Hostiles 1 | . 1 . . . Parts Melted 7 | . 3 3 . 1 Heat Transferred 3382 | . 1115 1057 . 1210 Parts Sabotaged . | . . . . . Parts Stolen . | . . . . . Parts Stripped . | . . . . . Power Chain Reactions . | . . . . . Alert | -11 -10 -9 -9 -8 ------- Run | Yrd Mat Mat Min Mat Peak Influence 203 | . 153 203 21 197 Initial 16 | . . 16 6 7 Average 57 | . 50 78 7 69 Maximum Alert Level 1 | . . 1 . . Low Security (%) 98 | 100 100 94 100 100 Level 1 1 | . . 5 . . Level 2 . | . . . . . Level 3 . | . . . . . Level 4 . | . . . . . Level 5 . | . . . . . High Security . | . . . . . Max Security . | . . . . . Squads Dispatched 2 | . . . . 2 Investigation . | . . . . . Extermination . | . . . . . Reinforcement 2 | . . . . 2 Assault . | . . . . . Garrison . | . . . . . Intercept . | . . . . . Searches Triggered . | . . . . . Construction Impeded . | . . . . . Haulers Reinforced . | . . . . . Active Scanning Responses . | . . . . . Cargo Convoy Interrupts . | . . . . . Stealth | -11 -10 -9 -9 -8 --------- Run | Yrd Mat Mat Min Mat Distress Signals 3 | . . . . 3 Communications Jammed . | . . . . . Distress Signals . | . . . . . Times Spotted 43 | . 9 14 2 18 Peak Tracking Total 6 | . 3 4 2 6 Tactical Retreats 2 | . . 1 1 . Traps | -11 -10 -9 -9 -8 ------- Run | Yrd Mat Mat Min Mat Traps Triggered 2 | . 1 . . 1 Indirectly . | . . . . . Trap Hack Attempts . | . . . . . Triggered . | . . . . . Disarmed . | . . . . . Reprogrammed . | . . . . . Reused . | . . . . . Traps Extracted . | . . . . . Installed . | . . . . . Triggered . | . . . . . Machines | -11 -10 -9 -9 -8 ---------- Run | Yrd Mat Mat Min Mat Machines Disabled 1 | . . . . 1 Max in Single Turn 1 | . . . . 1 Machines Repaired . | . . . . . Machines Dismantled . | . . . . . Machines Sabotaged . | . . . . . Overloaded Fab Kills . | . . . . . Hacking | -11 -10 -9 -9 -8 --------- Run | Yrd Mat Mat Min Mat Machines Accessed 7 | . 4 3 . . Terminals 7 | . 4 3 . . Fabricators . | . . . . . Repair Stations . | . . . . . Recycling Units . | . . . . . Scanalyzers . | . . . . . Garrison Access . | . . . . . Total Hacks 13 | . 8 5 . . Successful 7 | . 3 4 . . Failed 6 | . 5 1 . . Catastrophic 1 | . 1 . . . Database Lockouts . | . . . . . Manual . | . . . . . Terminals 13 | . 8 5 . . Fabricators . | . . . . . Repair Stations . | . . . . . Recycling Units . | . . . . . Scanalyzers . | . . . . . Garrison Access . | . . . . . Terminal Hacks 7 | . 3 4 . . Prototype ID Bank 2 | . . 2 . . Emergency Access Points 2 | . 1 1 . . Maintenance Status 1 | . 1 . . . Zone Layout 2 | . 1 1 . . Fabricator Hacks . | . . . . . Repair Station Hacks . | . . . . . Recycling Unit Hacks . | . . . . . Scanalyzer . | . . . . . Garrison Access Hacks . | . . . . . Unauthorized Hacks . | . . . . . Terminals . | . . . . . Fabricators . | . . . . . Repair Stations . | . . . . . Recycling Units . | . . . . . Scanalyzers . | . . . . . Garrison Access . | . . . . . Data Cores Recovered . | . . . . . Used . | . . . . . Hacking Detections 4 | . 2 2 . . Full Trace Events 2 | . 1 1 . . Feedback Events . | . . . . . Feedback Blocked . | . . . . . Robot Schematics Acquired . | . . . . . Robots Built . | . . . . . Authchips . | . . . . . Time . | . . . . . Total Robot Build Rating . | . . . . . Part Schematics Acquired . | . . . . . Parts Built . | . . . . . Authchips . | . . . . . Time . | . . . . . Total Part Build Rating . | . . . . . Parts Repaired . | . . . . . Time . | . . . . . Parts Recycled . | . . . . . Recycled Matter . | . . . . . Retrieved Matter . | . . . . . Retrieved Components . | . . . . . Parts Scanalyzed . | . . . . . Part Schematics Acquired . | . . . . . Parts Damaged . | . . . . . Bothacking | -11 -10 -9 -9 -8 ------------ Run | Yrd Mat Mat Min Mat Used RIF Installer . | . . . . . Robots Hacked . | . . . . . Non-combat . | . . . . . Combat . | . . . . . Robot Hacks Applied . | . . . . . Relay Couplers Released . | . . . . . Fabnet Peak Effective % . | . . . . . Robots Rewired . | . . . . . Allies Hacked . | . . . . . Hacks Repelled . | . . . . . Allies | -11 -10 -9 -9 -8 -------- Run | Yrd Mat Mat Min Mat Total Allies . | . . . . . Largest Group . | . . . . . Highest-Rated Group . | . . . . . Highest-Rated Ally . | . . . . . Total Orders . | . . . . . Ally Attacks . | . . . . . Total Damage . | . . . . . Kills . | . . . . . Allies Corrupted . | . . . . . Allies Melted . | . . . . . Intel | -11 -10 -9 -9 -8 ------- Run | Yrd Mat Mat Min Mat Robot Analysis Total . | . . . . . Derelict Logs Recovered . | . . . . . Drone Launches . | . . . . . Drone Recoveries . | . . . . . Exploration | -11 -10 -9 -9 -8 ------------- Run | Yrd Mat Mat Min Mat Turns Passed 1510 | 57 520 415 134 384 Spaces Moved 887 | 38 340 250 101 158 Core 8 | 5 . . . 3 Treads 66 | . . . . 66 Legs 813 | 33 340 250 101 89 Wheels . | . . . . . Hover . | . . . . . Flight . | . . . . . Fastest Speed 50 | 50 120 120 120 100 Average Speed 122 | 118 120 120 120 137 Slowest Speed 200 | 190 120 120 120 200 Overloaded Moves . | . . . . . Propulsion Burnouts . | . . . . . Robots Hopped . | . . . . . Cave-ins Triggered . | . . . . . Exploration Rate (%) 26 | 3 57 28 24 19 Regions Visited 4 Branch Regions 1 Pre-discovered Areas . | . . . . . Known Exits Taken . | . . . . . Unknown Exits Taken 4 | 1 1 1 1 . Scrap Searched 1 | . . . 1 . Spaces Dug . | . . . . . Terrain Destroyed 13 | . . . . 13 Melee . | . . . . . Projectile . | . . . . . AOE 13 | . . . . 13 Terrain Rammed . | . . . . . Walls Destroyed . | . . . . . Machines Disabled . | . . . . . Actions | -11 -10 -9 -9 -8 --------- Run | Yrd Mat Mat Min Mat Total 1097 | 47 391 308 113 238 Wait 20 | . 9 6 5 . Move 883 | 37 339 249 100 158 Hop . | . . . . . Pick Up 22 | 4 3 9 2 4 Fast Attach 13 | 6 . 2 . 5 Attach 18 | . 3 4 . 11 Detach . | . . . . . Swap 10 | . 3 2 2 3 Drop 9 | . 3 2 2 2 Fire 118 | . 30 34 . 54 Melee . | . . . . . Ram . | . . . . . Kick 3 | . 1 . 2 . Crush 1 | . . . . 1 Escape Stasis . | . . . . . Rewire . | . . . . . Trap . | . . . . . Miscellaneous . | . . . . . Route ------- -11/Scrapyard -10/Materials (discovered 4 exits: *Mat x3 / [*Min]) -9/Materials -9/Mines (discovered 2 exits: [*Mat x2]) -8/Materials History --------- Turn | Location | Event 33 | -11/Scrapyard | Discovered new exit (range 16) 58 | -11/Scrapyard | Entered Materials 83 | -10/Materials | Discovered new exit (range 9) 124 | -10/Materials | Discovered new exit (range 8) 310 | -10/Materials | Build established: Mutant 444 | -10/Materials | Discovered new exit (range 16) 550 | -10/Materials | Discovered new exit (range 15) 578 | -10/Materials | Entered another Materials area 578 | -9/Materials | Evolved 2 slots: Propulsion x1, Utility x1 841 | -9/Materials | Discovered new exit (range 14) 993 | -9/Materials | Entered Mines 1015 | -9/Mines | Discovered new exit (range 8) 1066 | -9/Mines | Assembled infested the area 1071 | -9/Mines | Assisted by a Guerilla fighting off Assembled 1074 | -9/Mines | Received a Rocket Launcher from a helpful Derelict 1109 | -9/Mines | Discovered new exit (range 16) 1127 | -9/Mines | Entered Materials 1127 | -8/Materials | Evolved 2 slots: Power x1, Utility x1 1239 | -8/Materials | Lost 4 parts (2p1n1w) 1489 | -8/Materials | Core integrity fell below 50% 1508 | -8/Materials | Core integrity fell below 20% 1511 | -8/Materials | Destroyed by G-47 Trooper with Particle Gun Last Messages --------------- K-01 Serf cleans the Neutrino Reactor. U-05 Engineer lays Concrete. U-05 Engineer builds a Wall. U-05 Engineer lays Concrete. Hvy. Assault Rifle destroyed. U-05 Engineer lays Concrete. K-01 Serf cleans the Neutrino Reactor. U-05 Engineer lays Concrete. Critical hit (Burn: +37). U-05 Engineer lays Concrete. Critical hit (Burn: +37). U-05 Engineer lays Concrete. Particle Gun destroyed. Sml. Storage Unit destroyed. U-05 Engineer lays Concrete. U-05 Engineer builds a Wall. U-05 Engineer lays Concrete. System Shield destroyed. System corrupted by crushing effect (+3). U-05 Engineer lays Concrete. Map ----- +----------------------------------------------------+ | ??????????????????????????????????# *########## | | ?????????????????????????????????## ## | | ?????????????????????????????????# # | | ?????????????????????????????????# # | | ?????????????????????????????????# + | | ?????????????????????????????????# # | | ?????????????????# ??????????????# # | | ??????????????? # ?????????????###%########### | | ???????????????? # ?????????######+######????? | | ?????????????????/ ?????????# ! [ !#????? | | ?????????????????# ########## """ """ #????? | | ?????????????????# ^ ^ # """ """ #????? | | ?????????????????# ^^ # """ """ #????? | | ?????????????????# [^ ^^ + """ """ #????? | | ?????????????????# ^[[[ k# #????? | | ?????????????????# ^ % # #????? | | ????????????????## ##############????? | | ????????????????#T "" ^ =*#?????????????????? | | ?????????????????# [R = *#?????????????????? | | ?????????????????#=[!"" %+ ????????????????? | | ?????????????????# "" % =# ??????????????? | | ????????????????## %= %#####?????????????? | | ????????????????# [ %%###"T"###?????????? | | ????????????????# g ???????? | | ????????????????+ b %g ???????? | | ????????????????#w @ k ???????? | | ????????????????# ????????? | | ????????????????## ????????? | | ?????????????????#]] """ """ """ ?????????? | | ?????????????????#]] """""""" ""???????????? | | ?????????????????#] """"" " ""???????????? | | ?????????????????# ? ???????????? | | ????????????????? |H ? ? ???????????? | | ????????????????## %######???"###?????????????? | | ???????????????# h * ????????????????????????? | | ??????????????? u ????????????????????????? | | ?????????????? u ????????????????????????? | | ?????????????? ????????????????????????? | | ???????????????? ?????????????????????????? | | ??????????????????? ? ?????????????????????????? | | ???????????????????????????????????????????????? | | ???????????????????????????????????????????????? | | ???????????????????????????????????????????????? | | ???????????????????????????????????????????????? | | ???????????????????????????????????????????????? | | ???????????????????????????????????????????????? | | ???????????????????????????????????????????????? | | ???????????????????????????????????????????????? | | ???????????????????????????????????????????????? | | ???????????????????????????????????????????????? | +----------------------------------------------------+ Best States ------------- Heat Dissipation 31 Energy Generation 23 Energy Capacity 415 Matter Stores 300 Matter Capacity 300 Sight Range 16 Terrain Scan Density 10 Additional Mass Support 6 Evasion (%) 55 Targeting Accuracy 5 Recoil Reduction 3 Defensive Hacking 10 Item Schematics ----------------- None Robot Schematics ------------------ None Fabricated ------------ Nothing Alien Tech Used ----------------- None Achievements -------------- Use The Force Challenges ------------ None Game ------ Seed StealthArcAutobeam Manual? 0 Play Time 00:21:56 Cumulative 9.2 hours Start 2024.04.20 @ 19:57:01 End 2024.04.20 @ 20:17:19 Sessions 1 Manual Loads 0 Difficulty Rogue Special Mode None Game No. 21 Rogue 21 Adventurer 0 Explorer 0 Win Type - Total 0 Types 0/0/0/0/0/0/0/0/0 Lore% 11 Gallery% 12 Achievement% 13 Wizard Run 0 Options --------- Layout 1 ASCII 0 Keyboard 0 Movement Mouse Keybinds 0 Fullscreen 1 Font 24/Smallcaps Map View 50x35 Zoom Use 0% Tactical HUD 0 Map Filters NONE Filters NONE Steam 1 RUN: 748d64f7-cee5-40f4-8e63-6b2f6ae3b903